bitfinex/quotes_SOLUSD_20240624
["timestamp","ask_amount","ask_price","bid_price","bid_amount"]
[1719246966977,22.2421,126.84,126.73,20.34]
[1719246967168,22.2421,126.84,126.74,0.17]
[1719246967368,22.2421,126.84,126.74,0.34]
[1719246967881,22.2421,126.84,126.75,0.17]
[1719246968202,22.2421,126.84,126.75,20.34]
[1719246968906,22.2421,126.84,126.76,20.0]
[1719246969201,22.2421,126.84,126.77,0.34]
[1719246969392,22.2421,126.84,126.78,0.17]
[1719246969578,22.2421,126.84,126.77,0.17]
[1719246969899,22.2421,126.84,126.76,67.57]
[1719246970095,22.2421,126.84,126.77,0.17]
[1719246972369,22.2421,126.84,126.77,390.57]
[1719246972566,22.2421,126.84,126.78,20.17]
[1719246972794,22.2421,126.84,126.79,0.17]
[1719246976399,22.2421,126.84,126.77,390.4]
[1719246977008,21.7421,126.84,126.74,6.46779298]
[1719246977207,21.7421,126.84,126.72,418.61]
[1719246977409,21.7421,126.84,126.73,20.0]
[1719246978004,21.7421,126.84,126.72,28.21]
[1719246978407,21.7421,126.84,126.72,34.50121027]
[1719246978790,15.1488,126.82,126.71,390.4]
[1719246979303,0.34,126.81,126.71,390.4]
[1719246979518,0.17,126.81,126.71,390.4]
[1719246980010,16.1895,126.8,126.67,390.4]
[1719246980188,16.1895,126.78,126.67,390.4]
[1719246980387,6.314,126.77,126.64,390.4]
[1719246980583,6.314,126.77,126.64,437.8]
[1719246980584,15.271,126.76,126.64,437.8]
[1719246980808,6.3851,126.75,126.64,437.8]
[1719246981308,6.3851,126.75,126.65,20.0]
[1719246981614,6.3851,126.75,126.66,0.17]
[1719246982502,6.3851,126.75,126.65,20.0]
[1719246982902,6.3851,126.75,126.64,6.38849186]
[1719246983206,0.17,126.77,126.61,15.271]
[1719246983207,6.3851,126.73,126.61,15.271]
[1719246983391,15.8394,126.72,126.6,6.457042]
[1719246983598,6.0686,126.71,126.58,47.4]
[1719246983911,6.0686,126.71,126.58,53.7851]
[1719246984411,6.0686,126.71,126.58,47.4]
[1719246984988,6.0686,126.71,126.59,20.0]
[1719246985304,6.0686,126.71,126.59,75.2993]
[1719246985510,6.0686,126.71,126.62,7.8971]
[1719246985693,6.0686,126.71,126.63,0.34]
[1719246986012,6.0686,126.71,126.64,0.17]
[1719246987394,6.0686,126.71,126.63,20.34]
[1719246988214,6.0686,126.71,126.63,0.34]
[1719246988389,6.0686,126.71,126.6,20.0]
[1719246988918,21.8847,126.68,126.55,4.96258088]
[1719246989406,6.1145,126.66,126.55,4.96258088]
[1719246989797,6.1145,126.66,126.55,12.86448088]
[1719246990004,6.1145,126.66,126.55,4.96258088]
[1719246990415,6.1145,126.66,126.56,0.34]
[1719246990612,15.7702,126.65,126.55,4.96258088]
[1719246991309,15.7702,126.65,126.56,47.4]
[1719246991517,15.7702,126.65,126.57,20.0]
[1719246991907,15.7702,126.65,126.58,0.34]
[1719246992421,15.7702,126.65,126.57,0.17]
[1719246993725,15.7702,126.65,126.57,0.34]
[1719246998502,15.7702,126.65,126.55,28.21]
[1719246998808,6.3619,126.64,126.54,390.4]
[1719246999700,6.3619,126.64,126.55,20.0]
[1719247000534,6.3619,126.64,126.56,0.34]
[1719247002016,6.3619,126.64,126.56,0.17]
[1719247002222,15.1598,126.63,126.55,20.0]
[1719247002402,15.1598,126.63,126.54,390.4]
[1719247003236,15.1598,126.61,126.54,390.4]
[1719247003413,6.1684,126.6,126.49,437.8]
[1719247003605,6.1684,126.6,126.5,20.0]
[1719247004214,15.1598,126.59,126.48,390.4]
[1719247004423,15.1598,126.59,126.49,20.0]
[1719247004936,33.69,126.65,126.47,20.0]
[1719247005107,22.144,126.57,126.47,20.0]
[1719247006215,21.721,126.56,126.47,20.0]
[1719247006415,6.5566,126.54,126.46,20.0]
[1719247006715,6.5566,126.54,126.44,26.40126334]
[1719247006923,6.5566,126.54,126.44,20.0]
[1719247007319,6.5566,126.54,126.44,67.4]
[1719247007511,6.5566,126.54,126.44,75.3085]
[1719247007711,6.5566,126.54,126.45,0.34]
[1719247007940,6.5566,126.54,126.47,7.9067]
[1719247008228,6.5566,126.54,126.48,0.34]
[1719247008816,6.5566,126.54,126.48,0.17]
[1719247009115,6.5566,126.54,126.45,20.0]
[1719247009522,6.5566,126.54,126.44,20.0]
[1719247010238,15.1644,126.55,126.48,36.116]
[1719247010540,15.1644,126.55,126.49,20.0]
[1719247010717,15.1644,126.55,126.5,7.9049]
[1719247011034,15.1644,126.55,126.51,87.1606]
[1719247011243,6.0678,126.57,126.52,36.1136]
[1719247011411,6.0678,126.57,126.53,20.34]
[1719247012017,6.0678,126.57,126.54,20.0]
[1719247012338,6.0678,126.57,126.55,0.17]
[1719247012512,6.0678,126.57,126.53,0.34]
[1719247013833,6.0678,126.57,126.52,0.34]
[1719247014418,6.0678,126.57,126.52,20.34]
[1719247016018,16.4033,126.59,126.52,20.34]
[1719247016625,16.4033,126.59,126.52,477.8993]
[1719247016840,16.4033,126.59,126.53,47.4]
[1719247017038,16.4033,126.59,126.54,20.34]
[1719247018148,16.4033,126.59,126.54,0.34]
[1719247020946,16.4033,126.59,126.52,390.4]
[1719247021150,6.6126,126.58,126.48,6.36963744]
[1719247021333,6.6126,126.58,126.49,20.0]
[1719247021843,6.6126,126.58,126.47,20.0]
[1719247022245,6.6126,126.58,126.46,75.3073]
[1719247022446,6.6126,126.58,126.48,47.4]
[1719247022640,6.6126,126.58,126.51,7.9042]
[1719247022953,6.6126,126.58,126.52,20.34]
[1719247023126,6.6126,126.58,126.52,20.17]
[1719247023327,6.6126,126.58,126.52,0.17]
[1719247023682,6.6126,126.58,126.51,0.17]
[1719247024023,21.6783,126.56,126.44,8.20727453]
[1719247024217,21.8483,126.55,126.41,390.4]
[1719247024749,21.6783,126.55,126.41,390.4]
[1719247024920,21.6783,126.55,126.42,47.4]
[1719247025122,21.6783,126.55,126.44,7.9088]
[1719247025342,21.6783,126.55,126.43,47.4]
[1719247025343,6.4523,126.53,126.41,398.6107572]
[1719247025551,6.4523,126.5,126.42,20.0]
[1719247025728,15.7505,126.47,126.36,390.4]
[1719247025926,6.4523,126.46,126.34,437.8]
[1719247026141,6.4523,126.46,126.34,444.06812635]
[1719247026523,6.4523,126.46,126.34,14.48211884]
[1719247026724,6.4523,126.46,126.34,8.21399249]
[1719247026918,6.4523,126.46,126.32,19.7905]
[1719247026919,15.7505,126.45,126.32,6.21472107]
[1719247027248,15.7505,126.45,126.31,502.84074497]
[1719247027470,15.7505,126.45,126.31,514.71574497]
[1719247027978,15.7505,126.45,126.35,55.3143]
[1719247028277,15.7505,126.45,126.37,47.4]
[1719247028763,15.7505,126.45,126.37,55.3131]
[1719247028968,6.4523,126.44,126.32,47.4]
[1719247029291,6.4523,126.44,126.33,47.4]
[1719247029454,6.4523,126.44,126.35,47.4]
[1719247029842,6.4523,126.44,126.37,55.3131]
[1719247030073,6.4523,126.44,126.38,75.72]
[1719247030268,15.7505,126.45,126.39,55.3115]
[1719247030466,15.7505,126.45,126.4,20.0]
[1719247030648,15.7505,126.45,126.41,0.34]
[1719247031186,15.7505,126.45,126.42,0.17]
[1719247031348,15.7505,126.45,126.41,0.17]
[1719247031349,6.4523,126.47,126.41,67.57]
[1719247031549,6.4523,126.47,126.42,0.17]
[1719247032268,6.4523,126.47,126.41,0.34]
[1719247033342,6.4523,126.47,126.41,0.17]
[1719247033546,6.4523,126.47,126.4,67.4]
[1719247033950,6.4523,126.47,126.4,87.1771]
[1719247034166,6.4523,126.47,126.41,55.3106]
[1719247034477,6.4523,126.47,126.42,20.0]
[1719247034849,6.4523,126.47,126.43,0.17]
[1719247035739,6.4523,126.47,126.42,20.17]
[1719247035970,6.4523,126.47,126.43,20.0]
[1719247036174,6.4523,126.47,126.44,0.34]
[1719247036368,6.4523,126.47,126.42,0.17]
[1719247037051,6.4523,126.47,126.41,0.17]
[1719247037366,6.4523,126.47,126.4,20.0]
[1719247037367,15.6016,126.46,126.4,20.0]
[1719247037549,15.6016,126.46,126.39,20.0]
[1719247037946,15.6016,126.46,126.38,390.4]
[1719247038362,6.0887,126.45,126.38,390.4]
[1719247039172,6.0887,126.45,126.33,19.7885]
[1719247039369,6.0887,126.45,126.33,6.28636644]
[1719247039551,6.0887,126.45,126.32,40.45019202]
[1719247039866,6.0887,126.45,126.33,7.9157]
[1719247040056,6.0887,126.45,126.34,7.915]
[1719247040249,6.0887,126.45,126.35,7.9144]
[1719247040850,6.0887,126.45,126.35,55.3144]
[1719247041055,6.0887,126.45,126.36,7.9137]
[1719247041272,6.0887,126.45,126.35,47.4]
[1719247041273,6.0887,126.45,126.37,20.34]
[1719247041570,6.0887,126.45,126.37,0.34]
[1719247042371,6.0887,126.45,126.39,47.4]
[1719247042576,6.0887,126.45,126.4,20.34]
[1719247042760,15.6016,126.46,126.41,7.9106]
[1719247042958,15.6016,126.46,126.4,96.1]
[1719247042959,15.6016,126.46,126.42,20.34]
[1719247043153,15.6016,126.46,126.43,0.17]
[1719247043349,15.6016,126.46,126.43,0.34]
[1719247043877,15.6016,126.46,126.43,0.17]
[1719247044176,6.1858,126.48,126.42,0.34]
[1719247044349,16.6239,126.5,126.44,47.4]
[1719247044550,6.3705,126.53,126.45,67.74]
[1719247044779,6.3705,126.53,126.45,485.8185]
[1719247045453,6.3705,126.53,126.45,410.74]
[1719247045851,6.3705,126.53,126.45,410.57]
[1719247047266,6.3705,126.53,126.46,0.17]
[1719247050988,16.6239,126.54,126.47,74.78383824]
[1719247051157,16.6239,126.54,126.48,20.34]
[1719247052383,16.6239,126.54,126.48,87.5051]
[1719247052682,6.0417,126.56,126.51,55.304]
[1719247052889,16.6615,126.58,126.52,20.34]
[1719247053089,16.6615,126.58,126.51,390.4]
[1719247053261,16.6615,126.58,126.52,0.17]
[1719247053580,16.6615,126.58,126.51,390.4]
[1719247054855,6.5535,126.57,126.51,390.4]
[1719247056071,16.4244,126.56,126.51,390.4]
[1719247057586,16.4244,126.56,126.52,0.34]
[1719247060864,16.4244,126.56,126.49,20.0]
[1719247061078,16.4244,126.56,126.48,20.0]
[1719247061903,16.4244,126.56,126.47,390.4]
[1719247063168,16.4244,126.56,126.48,0.34]
[1719247066272,16.4244,126.56,126.48,0.17]
[1719247067386,16.4739,126.61,126.54,47.4]
[1719247067592,16.4739,126.61,126.55,67.74]
[1719247068682,16.4739,126.61,126.55,75.6419]
[1719247069571,16.4739,126.61,126.55,67.74]
[1719247071493,16.4739,126.61,126.55,20.34]
[1719247071684,16.4739,126.61,126.55,0.34]
[1719247073778,16.4739,126.61,126.55,0.17]
[1719247076595,16.4739,126.61,126.54,0.34]
[1719247080289,16.4739,126.61,126.53,20.0]
[1719247082294,16.4739,126.61,126.54,0.17]
[1719247083278,16.4739,126.61,126.54,0.34]
[1719247084696,16.4739,126.61,126.54,0.17]
[1719247085809,16.4739,126.61,126.52,20.0]
[1719247087302,16.4739,126.61,126.53,0.34]
[1719247087993,16.4739,126.61,126.53,47.74]
[1719247088295,16.4739,126.61,126.54,20.0]
[1719247089184,16.4739,126.61,126.53,0.34]
[1719247089383,16.4739,126.61,126.53,47.74]
[1719247089690,16.4739,126.61,126.55,47.4]
[1719247089997,16.4739,126.61,126.56,0.34]
[1719247090202,16.4739,126.61,126.57,47.4]
[1719247090390,6.0018,126.62,126.59,47.4]
[1719247090584,6.0018,126.62,126.6,67.74]
[1719247090801,6.0018,126.62,126.6,67.57]
[1719247090997,6.0018,126.62,126.61,0.17]
[1719247091601,6.0018,126.62,126.58,47.4]
[1719247091783,6.0018,126.62,126.59,20.5686851]
[1719247091989,6.0018,126.62,126.6,0.4008126]
[1719247092223,6.0018,126.62,126.51,396.81170109]
[1719247092504,6.0018,126.62,126.53,47.4]
[1719247092724,6.0018,126.62,126.55,47.4]
[1719247092880,6.0018,126.62,126.52,20.0]
[1719247093086,15.1085,126.61,126.52,20.0]
[1719247093697,15.1085,126.61,126.52,67.4]
[1719247094415,15.1085,126.61,126.53,0.34]
[1719247095911,15.1085,126.61,126.54,47.4]
[1719247096114,15.1085,126.61,126.56,47.4]
[1719247096416,15.1085,126.61,126.55,0.34]
[1719247096597,15.1085,126.61,126.55,0.17]
[1719247096998,15.1085,126.61,126.55,20.17]
[1719247097293,15.1085,126.61,126.56,47.57]
[1719247097611,15.1085,126.61,126.56,0.17]
[1719247097816,6.0974,126.6,126.53,47.4]
[1719247098318,6.0974,126.6,126.54,20.0]
[1719247098886,6.0974,126.6,126.52,47.4]
[1719247099093,6.0974,126.6,126.53,20.0]
[1719247099416,6.0974,126.6,126.54,0.34]
[1719247104810,6.0974,126.6,126.54,0.17]
[1719247105018,6.0974,126.6,126.53,67.4]
[1719247105201,6.0974,126.6,126.5,47.4]
[1719247105402,6.0974,126.6,126.52,47.4]
[1719247106192,15.8907,126.59,126.52,47.4]
[1719247106505,15.8907,126.59,126.5,47.4]
[1719247106687,15.8907,126.59,126.5,67.4]
[1719247107013,15.8907,126.59,126.5,47.4]
[1719247107607,15.8907,126.59,126.51,0.17]
[1719247108309,15.8907,126.59,126.52,47.4]
[1719247108615,15.8907,126.59,126.54,47.4]
[1719247108811,15.8907,126.59,126.56,47.4]
[1719247109014,15.8907,126.59,126.57,0.34]
[1719247109911,15.8907,126.59,126.55,20.0]
[1719247110213,15.8907,126.59,126.54,67.57]
[1719247110718,15.8907,126.59,126.54,47.57]
[1719247111086,15.8907,126.59,126.54,0.17]
[1719247111600,15.8907,126.59,126.53,47.57]
[1719247111919,6.4386,126.58,126.52,390.4]
[1719247112093,15.8154,126.57,126.45,390.4]
[1719247112289,15.8154,126.57,126.46,19.53572517]
[1719247112490,15.8154,126.57,126.49,7.9057]
[1719247112695,15.8154,126.57,126.51,28.36]
[1719247112894,6.4386,126.58,126.52,55.3037]
[1719247113096,15.2046,126.6,126.54,47.4]
[1719247113512,15.2046,126.6,126.55,0.17]
[1719247113706,22.2191,126.58,126.49,9.74409906]
[1719247113908,38.25512798,126.7,126.42,1.76058659]
[1719247113909,28.36,126.55,126.42,1.76058659]
[1719247114097,28.36,126.55,126.29,19.43847931]
[1719247114098,28.36,126.51,126.29,19.43847931]
[1719247114305,28.36,126.54,126.35,7.9143]
[1719247114493,28.36,126.54,126.33,19.7891]
[1719247114494,0.17,126.53,126.37,7.913]
[1719247114694,0.17,126.53,126.36,19.7842]
[1719247114897,16.644,126.52,126.36,39.74721662]
[1719247115097,6.7609,126.51,126.36,19.7842]
[1719247115301,0.17,126.5,126.32,48.15]
[1719247115520,0.17,126.5,126.32,68.12060118]
[1719247116029,0.17,126.5,126.33,47.4]
[1719247116325,0.17,126.5,126.34,47.4]
[1719247117024,6.5909,126.51,126.34,67.1876]
[1719247117205,6.5909,126.51,126.38,47.4]
[1719247118121,6.5909,126.51,126.35,47.4]
[1719247118321,6.5909,126.51,126.32,7.9162]
[1719247118522,0.34,126.5,126.33,20.0]
[1719247118904,0.34,126.5,126.33,27.9156]
[1719247119106,0.34,126.5,126.33,20.0]
[1719247119107,7.9062,126.49,126.33,20.0]
[1719247121002,21.4052,126.45,126.34,0.17]
[1719247121196,21.4052,126.45,126.34,0.34]
[1719247121504,21.4052,126.45,126.34,67.57]
[1719247122231,21.4052,126.45,126.34,20.17]
[1719247122410,21.4052,126.45,126.35,20.0]
[1719247122619,21.4052,126.45,126.36,0.17]
[1719247122907,0.17,126.44,126.32,20.0]
[1719247123111,0.17,126.44,126.26,25.14135969]
[1719247123112,0.34,126.44,126.26,53.50135969]
[1719247123309,0.34,126.44,126.27,47.4]
[1719247124028,0.34,126.44,126.25,47.4]
[1719247124206,10.34,126.44,126.25,47.4]
[1719247124406,10.34,126.44,126.2,1.21507103]
[1719247124407,6.0335,126.39,126.2,391.61507103]
[1719247124733,16.2171,126.38,126.2,1.21507103]
[1719247124909,16.3871,126.38,126.2,29.57507103]
[1719247125115,16.3871,126.38,126.19,18.68577378]
[1719247125311,16.3871,126.38,126.19,47.04577378]
[1719247125511,16.3871,126.38,126.18,437.8]
[1719247125512,6.4947,126.34,126.18,437.8]
[1719247125713,6.4947,126.34,126.18,390.4]
[1719247125714,0.34,126.33,126.18,390.4]
[1719247125914,16.2837,126.32,126.15,400.02779006]
[1719247126118,16.2837,126.32,126.21,19.8077]
[1719247126309,16.2837,126.32,126.19,28.36]
[1719247126310,6.4947,126.34,126.23,28.36]
[1719247126527,6.4947,126.34,126.27,75.76]
[1719247126736,6.4947,126.34,126.27,466.16]
[1719247126912,6.4947,126.34,126.27,418.76]
[1719247127108,6.4947,126.34,126.28,0.17]
[1719247127305,6.4947,126.34,126.28,0.34]
[1719247127730,6.4947,126.34,126.27,0.17]
[1719247128433,6.4947,126.34,126.24,390.4]
[1719247129730,6.4947,126.34,126.21,28.45]
[1719247129947,6.4947,126.34,126.22,20.0]
[1719247130228,6.4947,126.34,126.21,426.7732]
[1719247130452,6.4947,126.34,126.23,19.805]
[1719247130605,6.4947,126.34,126.26,47.4]
[1719247130809,6.4947,126.34,126.27,7.9193]
[1719247131007,16.2837,126.38,126.31,47.4]
[1719247131318,6.6623,126.41,126.32,0.34]
[1719247131515,6.6623,126.41,126.32,20.34]
[1719247131719,6.6623,126.41,126.32,67.74]
[1719247131918,6.6623,126.41,126.32,75.6561]
[1719247132314,6.6623,126.41,126.32,67.74]
[1719247133334,16.3086,126.43,126.34,47.4]
[1719247133637,6.6436,126.46,126.36,47.4]
[1719247133818,6.6436,126.46,126.37,67.74]
[1719247135153,6.6436,126.46,126.39,28.45]
[1719247135309,6.6436,126.46,126.4,0.34]
[1719247135735,15.1956,126.49,126.4,0.34]
[1719247135942,15.1956,126.49,126.4,458.14]
[1719247136119,15.1956,126.49,126.4,410.74]
[1719247137221,6.0349,126.51,126.43,75.85]
[1719247137420,16.5439,126.55,126.44,67.74]
[1719247137628,16.5439,126.55,126.44,458.14]
[1719247140349,16.5439,126.55,126.48,47.4]
[1719247140525,16.5439,126.55,126.47,28.45]
[1719247140744,16.5439,126.55,126.44,410.57]
[1719247141661,16.5439,126.55,126.42,28.45]
[1719247142539,16.5439,126.55,126.43,47.4]
[1719247142734,16.5439,126.55,126.43,437.8]
[1719247143159,16.5439,126.55,126.44,67.4]
[1719247143331,8.18981317,126.56,126.48,47.4]
[1719247143537,22.2948,126.61,126.5,75.85]
[1719247143764,22.2948,126.61,126.51,67.4]
[1719247144159,22.2948,126.61,126.52,0.17]
[1719247144342,22.2948,126.61,126.52,0.34]
[1719247144952,22.2948,126.61,126.5,390.4]
[1719247145331,22.2948,126.61,126.5,437.8]
[1719247145656,22.2948,126.61,126.52,47.4]
[1719247145834,22.2948,126.61,126.53,67.4]
[1719247146229,22.2948,126.61,126.54,0.17]
[1719247146456,22.2948,126.61,126.54,0.34]
[1719247146665,6.2944,126.61,126.54,0.34]
[1719247147662,6.2944,126.61,126.53,390.4]
[1719247148756,6.2944,126.61,126.48,75.85]
[1719247148960,6.2944,126.61,126.49,67.4]
[1719247149167,0.17,126.6,126.48,28.45]
[1719247149463,0.34,126.6,126.48,28.45]
[1719247149964,6.2944,126.61,126.48,75.85]
[1719247150353,0.34,126.6,126.48,28.45]
[1719247150654,6.4644,126.61,126.48,28.45]
[1719247150860,0.34,126.6,126.48,28.45]
[1719247151174,0.34,126.6,126.46,390.4]
[1719247151175,15.0063,126.59,126.46,390.4]
[1719247151363,15.0063,126.59,126.45,259.1]
[1719247151364,6.0308,126.57,126.44,390.4]
[1719247151534,0.34,126.56,126.43,20.0]
[1719247151736,0.34,126.56,126.42,28.45]
[1719247151737,6.0308,126.57,126.42,75.85]
[1719247152262,0.34,126.56,126.41,75.85]
[1719247152559,6.0308,126.57,126.41,83.7604]
[1719247152764,6.0308,126.57,126.43,47.4]
[1719247152955,6.0308,126.57,126.44,0.17]
[1719247153336,0.17,126.56,126.41,75.85]
[1719247153570,0.34,126.56,126.42,67.4]
[1719247153951,24.1851,126.55,126.39,390.4]
[1719247154138,10.0,126.53,126.39,390.4]
[1719247154341,0.34,126.52,126.39,390.4]
[1719247154539,0.17,126.52,126.39,390.4]
[1719247154966,21.4322,126.52,126.39,390.4]
[1719247155148,0.34,126.51,126.34,390.4]
[1719247155458,21.4322,126.52,126.38,47.4]
[1719247155669,21.4322,126.52,126.4,55.3113]
[1719247155873,21.4322,126.52,126.4,437.8]
[1719247156445,21.4322,126.52,126.41,0.34]
[1719247156771,21.4322,126.52,126.41,0.17]
[1719247157152,0.17,126.51,126.4,390.4]
[1719247157461,0.34,126.51,126.4,390.4]
[1719247158061,0.34,126.51,126.34,28.45]
[1719247158253,15.4809,126.49,126.31,390.4]
[1719247158451,8.2464,126.48,126.32,20.0]
[1719247158656,6.4172,126.47,126.31,390.4]
[1719247158866,14.3255,126.45,126.31,390.4]
[1719247159173,0.34,126.44,126.26,677.06663424]
[1719247159758,0.34,126.44,126.27,47.4]
[1719247159954,0.34,126.44,126.28,47.4]
[1719247160347,0.34,126.44,126.26,649.5]
[1719247160546,21.8444,126.43,126.26,649.5]
[1719247160761,21.8444,126.41,126.26,390.4]
[1719247161079,0.34,126.4,126.26,390.4]
[1719247161545,6.5984,126.37,126.2,21.8444]
[1719247161745,6.5984,126.37,126.2,421.1334]
[1719247161746,0.17,126.36,126.2,421.1334]
[1719247161944,0.34,126.36,126.21,55.3231]
[1719247162172,0.34,126.36,126.23,47.4]
[1719247162347,6.5984,126.37,126.21,402.1834]
[1719247162544,0.34,126.36,126.21,402.1834]
[1719247162765,0.17,126.36,126.21,457.5065]
[1719247162965,0.17,126.35,126.21,402.1834]
[1719247163141,6.5984,126.37,126.25,28.45]
[1719247163345,6.5984,126.37,126.22,19.40892202]
[1719247163542,6.5984,126.37,126.23,20.4491637]
[1719247163771,6.5984,126.37,126.24,47.4]
[1719247164188,6.5984,126.37,126.25,0.34]
[1719247164467,6.5984,126.37,126.22,28.45]
[1719247164652,0.17,126.36,126.21,373.7334]
[1719247164852,22.7696,126.35,126.17,661.2834]
[1719247165050,0.34,126.34,126.17,661.2834]
[1719247165249,16.455,126.32,126.17,661.2834]
[1719247165479,0.34,126.31,126.17,632.8334]
[1719247165658,6.3146,126.3,126.14,401.4798]
[1719247165977,6.3146,126.3,126.17,47.4]
[1719247166176,6.3146,126.3,126.14,373.7334]
[1719247166347,0.34,126.29,126.14,373.7334]
[1719247166857,0.34,126.29,126.14,421.1334]
[1719247167063,0.34,126.29,126.14,429.0605]
[1719247167377,0.34,126.29,126.12,259.1]
[1719247167378,15.9067,126.27,126.12,259.1]
[1719247167674,15.9067,126.27,126.13,28.45]
[1719247167876,15.9067,126.27,126.14,47.4]
[1719247168046,15.9067,126.27,126.15,47.4]
[1719247168243,15.9067,126.27,126.12,259.1]
[1719247168465,15.9067,126.27,126.12,287.55]
[1719247168672,15.9067,126.27,126.14,7.9276]
[1719247168873,15.9067,126.27,126.13,47.4]
[1719247169084,15.9067,126.27,126.14,7.9276]
[1719247169291,15.9067,126.27,126.14,392.82357861]
[1719247169584,15.9067,126.27,126.15,7.9269]
[1719247169762,15.9067,126.27,126.16,20.0]
[1719247169956,15.9067,126.27,126.12,287.55]
[1719247169957,15.9067,126.27,126.12,632.8334]
[1719247170173,15.9067,126.27,126.13,20.0]
[1719247170547,14.48794914,126.28,126.08,9.84862824]
[1719247170548,6.6625,126.24,126.08,9.84862824]
[1719247170778,15.4677,126.23,126.05,19.8325]
[1719247171083,6.8325,126.22,126.02,28.45]
[1719247171384,6.8325,126.21,126.01,15.4677]
[1719247171551,6.8325,126.21,126.01,43.9177]
[1719247171748,6.8325,126.21,126.02,19.57352277]
[1719247172079,6.6625,126.21,126.06,7.9324]
[1719247172259,6.6625,126.21,126.09,47.4]
[1719247172661,6.6625,126.21,126.09,67.2258]
[1719247172984,6.6625,126.21,126.12,47.4]
[1719247173485,6.6625,126.21,126.13,20.34]
[1719247173665,6.1519,126.26,126.16,7.926]
[1719247173856,6.1519,126.26,126.17,48.79]
[1719247174055,6.1519,126.26,126.18,47.4]
[1719247174270,6.1519,126.26,126.19,67.74]
[1719247174583,6.1519,126.26,126.19,0.17]
[1719247174755,16.3926,126.29,126.2,0.17]
[1719247174957,16.3926,126.29,126.2,76.02]
[1719247175162,6.1519,126.3,126.24,55.3213]
[1719247175359,6.1519,126.3,126.26,75.85]
[1719247175569,6.1519,126.3,126.26,47.4]
[1719247175771,6.1519,126.3,126.25,20.34]
[1719247176174,6.1519,126.3,126.25,67.74]
[1719247176369,16.3926,126.34,126.25,67.74]
[1719247176566,6.3267,126.39,126.28,75.85]
[1719247176765,6.3267,126.39,126.25,20.34]
[1719247176766,6.3267,126.39,126.32,83.7661]
[1719247176968,6.3267,126.39,126.34,47.4]
[1719247177279,6.3267,126.39,126.35,0.34]
[1719247177658,6.3267,126.39,126.33,47.4]
[1719247177889,6.3267,126.39,126.34,20.17]
[1719247178191,6.3267,126.39,126.34,0.17]
[1719247178356,6.3267,126.39,126.33,0.17]
[1719247178357,6.3267,126.39,126.33,67.74]
[1719247178691,22.2862,126.48,126.37,75.85]
[1719247178854,22.2862,126.48,126.38,20.34]
[1719247179057,22.2862,126.48,126.3,36.2920129]